Workbook

Sheet Calculs
B2: Entrez vos valeurs dans les cellules jaunes | F2: L'application ne vérifie pas lles limites (hauteur en fonction de la longueur Lb ...)
E4: Positions
B5: Long bras Lb | C5: Hauteur HF courante | E5: Pour table | H5: Pour charge
B6: FG,HE | E6: Hr mini | F6: Hr maxi | G6: XGt | H6: XGc
B7: (mm) | C7: (mm) | E7: (mm) | F7: (mm) | G7: (mm) | H7: (mm)
B8: 1800 | C8: 600 | E8: 200 | F8: 1000 | G8: 1000 | H8: 900
D10: Animation (hauteur)
B13: Masses
B14: Table | C14: Charge | D14: Bras FG | E14: Bras HE | F14: Un bras est l'ensemble de 2 joues et 2 entretoises (poids considéré au milieu)
B15: Mt | C15: Mc | D15: Mb1 | E15: Mb2
B16: (kg) | C16: (kg) | D16: (kg) | E16: (kg)
B17: 30 | C17: 2000 | D17: 20 | E17: 20
B21: Résultats
B22: XRf | C22: =MMULT(MINVERSE(B37:G42),H37:H42) -> 56881.08369 | D22: N
B23: YRf | C23: 9532.005777 | D23: N
B24: XFk | C24: -56881.08369 | D24: N
B25: YFk | C25: 1242.688446 | D25: N
B26: XRe | C26: -56881.08369 | D26: N
B27: YRe | C27: 10774.69422 | D27: N
B30: Fv | C30: =XRe -> -56881.08369 | D30: N
B31: (négatif = effort vérin en tirant)
B36: XRf | C36: YRf | D36: XFk | E36: YFk | F36: XRe | G36: YRe | H36: = | J36: Vérif 1
A37: 1 | B37: =1 -> 1 | C37: =0 -> 0 | D37: =1 -> 1 | E37: =0 -> 0 | F37: =0 -> 0 | G37: =0 -> 0 | H37: =0 -> 0 | J37: =SUMPRODUCT($C$22:$C$27,TRANSPOSE(B37:G37))-H37 -> 0
A38: 2 | B38: =0 -> 0 | C38: =1 -> 1 | D38: =0 -> 0 | E38: =1 -> 1 | F38: =0 -> 0 | G38: =0 -> 0 | H38: =-Fg-Pb1_ -> 10774.69422 | J38: =SUMPRODUCT($C$22:$C$27,TRANSPOSE(B38:G38))-H38 -> 0
A39: 3 | B39: =-Yf -> 0 | C39: =0 -> 0 | D39: =-Yk -> -300 | E39: =Xk -> 848.5281374 | F39: =0 -> 0 | G39: =0 -> 0 | H39: =-Xg*Fg-Xk*Pb1_ -> 18118781.22 | J39: =SUMPRODUCT($C$22:$C$27,TRANSPOSE(B39:G39))-H39 -> 0
A40: 4 | B40: =0 -> 0 | C40: =0 -> 0 | D40: =-1 -> -1 | E40: =0 -> 0 | F40: =1 -> 1 | G40: =0 -> 0 | H40: =0 -> 0 | J40: =SUMPRODUCT($C$22:$C$27,TRANSPOSE(B40:G40))-H40 -> 0
A41: 5 | B41: =0 -> 0 | C41: =0 -> 0 | D41: =0 -> 0 | E41: =-1 -> -1 | F41: =0 -> 0 | G41: =1 -> 1 | H41: =-Fh-Pb2_ -> 9532.005777 | J41: =SUMPRODUCT($C$22:$C$27,TRANSPOSE(B41:G41))-H41 -> 0
A42: 6 | B42: =0 -> 0 | C42: =0 -> 0 | D42: =Yk -> 300 | E42: =-Xk -> -848.5281374 | F42: =-Ye -> 0 | G42: =Xe -> 1697.056275 | H42: =-Xk*Pb2_ -> 166481.2206 | J42: =SUMPRODUCT($C$22:$C$27,TRANSPOSE(B42:G42))-H42 -> -2.153683454e-09
B46: Coordonnées des points (mm) | H46: Pesanteur | J46: Poids (N)
B47: Xf | C47: Xe | D47: Xk | E47: Xh | F47: Xg | H47: g | J47: Pt | K47: Pc | L47: Pb1 | M47: Pb2
B48: 0 | C48: =Lb*COS(alpha) -> 1697.056275 | D48: =Xe/2 -> 848.5281374 | E48: 0 | F48: =Xe -> 1697.056275 | H48: (m/s/s) | J48: (N) | K48: (N) | L48: (N) | M48: (N)
H49: 9.81 | J49: =-Mt*g -> -294.3 | K49: =-Mc*g -> -19620 | L49: =-Mb1_*g -> -196.2 | M49: =-Mb2_*g -> -196.2
B50: Yf | C50: Ye | D50: Yk | E50: Yh | F50: Yg
B51: 0 | C51: 0 | D51: =HF/2 -> 300 | E51: =HF -> 600 | F51: =HF -> 600 | J51: Efforts
J52: Rg | K52: Rh | L52: Fg | M52: Fh
J53: (N) | K53: (N) | L53: (N) | M53: (N)
J54: =-(XGt*Pt+XGc*Pc)/Xg -> 10578.49422 | K54: =-Rg-Pt-Pc -> 9335.805777 | L54: =-Rg -> -10578.49422 | M54: =-Rh -> -9335.805777
C55: Dessin | F55: Angle α bras FG / Ox
B56: Points | C56: X | D56: Y | F56: (rad) | G56: ( ° )
B57: H | C57: =Xh -> 0 | D57: =Yh -> 600 | F57: =ASIN(HF/Lb) -> 0.3398369095 | G57: =DEGREES(F57) -> 19.47122063
B58: E | C58: =Xe -> 1697.056275 | D58: =Ye -> 0
B59: F | C59: =Xf -> 0 | D59: =Yf -> 0
B60: G | C60: =Xg -> 1697.056275 | D60: =Yg -> 600 | F60: Equations utilisées ci-dessus | M60: Vérif 2
F61: 1 | G61: XFk+XRf = 0 | M61: =XFk+XRf -> 0
B62: Table | C62: =C57 -> 0 | D62: =D57 -> 600 | F62: 2 | G62: Fg+YFk+Pb1_+Yrf = 0 | M62: =Fg+YFk+Pb1_+YRf -> 0
C63: =Lb+100 -> 1900 | D63: =D62 -> 600 | F63: 3 | G63: Xg*Fg+Xk*YFk-Yk*XFk+Xk*Pb1_-Yf*XRf = 0 | M63: =Xg*Fg+Xk*YFk-Yk*XFk+Xk*Pb1_-Yf*XRf -> 1.571606845e-09
F64: 4 | G64: -XFk+Xre = 0 | M64: =-XFk+XRe -> 0
B65: Gc | C65: =XGc -> 900 | D65: =D57+100 -> 700 | F65: 5 | G65: Fh+Pb2_-YFk+Yre = 0 | M65: =Fh+Pb2_-YFk+YRe -> 0
B66: Gt | C66: =XGt -> 1000 | D66: =D57 -> 600 | F66: 6 | G66: -Xk*YFk+Yk*XFk+Xk*Pb2_+Xe*YRe-Ye*XRe = 0 | M66: =-Xk*YFk+Yk*XFk+Xk*Pb2_+Xe*YRe-Ye*XRe -> -3.725290298e-09
B68: Pour mise à jour échelle et proportions
C69: X | D69: Y
B70: Min | C70: 0 | D70: 0
B71: Max | C71: =1.2*Lb -> 2160 | D71: =1.2*Hmax -> 1200
B77: Calcul de l'effort du vérin par les travaux virtuels (pour info.) et comparaison avec calcul par les équations ci-dessus (ne pas oublier de modifier éventuellement les valeurs des hauteurs mini et maxi)
E79: Charge* table+bras (N) | G79: * avec poids équivalent des bras ramené au niveau de la table pour le même déplacement des CdG
E82: =Fh+Fg+(Pb1_+Pb2_)/2 -> -20110.5
B84: Hauteur table HF (mm) | C84: Longueur vérin DB (mm) | D84: Calcul force vérin (val. abs.) | G84: Les trois colonnes bleues sont remplies par le code VBA dès qu'une modification intervient dand les cellules jaunes ; la colonne orange est calculées par formule, en fonction des valeurs des colonnes bleues
D85: par travaux virtuels (N) | E85: par les équations (N)
B88: 200 | C88: 1788.854382 | E88: 179873.7802
B89: 208 | C89: 1787.941834 | D89: =ChEqu*(B90-B88)/(C90-C88) -> 172865.5742 | E89: 172867.3281
B90: 216 | C90: 1786.993005 | D90: 166374.803 | E90: 166376.4946
B91: 224 | C91: 1786.007839 | D91: 160344.3958 | E91: 160346.0296
B92: 232 | C92: 1784.986274 | D92: 154726.7235 | E92: 154728.3038
B93: 240 | C93: 1783.92825 | D93: 149480.5075 | E93: 149482.0378
B94: 248 | C94: 1782.833699 | D94: 144569.795 | E94: 144571.2787
B95: 256 | C95: 1781.702557 | D95: 139963.1274 | E95: 139964.5674
B96: 264 | C96: 1780.534751 | D96: 135632.8589 | E96: 135634.258
B97: 272 | C97: 1779.330211 | D97: 131554.5959 | E97: 131555.9567
B98: 280 | C98: 1778.088862 | D98: 127706.7327 | E98: 127708.0573
B99: 288 | C99: 1776.810626 | D99: 124070.0638 | E99: 124071.3545
B100: 296 | C100: 1775.495424 | D100: 120627.4601 | E100: 120628.7187
B101: 304 | C101: 1774.143173 | D101: 117363.5951 | E101: 117364.8233
B102: 312 | C102: 1772.75379 | D102: 114264.7142 | E102: 114265.9138
B103: 320 | C103: 1771.327186 | D103: 111318.4382 | E103: 111319.6105
B104: 328 | C104: 1769.863272 | D104: 108513.5952 | E104: 108514.7418
B105: 336 | C105: 1768.361954 | D105: 105840.0774 | E105: 105841.1996
B106: 344 | C106: 1766.823138 | D106: 103288.7171 | E106: 103289.816
B107: 352 | C107: 1765.246725 | D107: 100851.1796 | E107: 100852.2564
B108: 360 | C108: 1763.632615 | D108: 98519.87112 | E108: 98520.92694
B109: 368 | C109: 1761.980704 | D109: 96287.85808 | E109: 96288.89386
B110: 376 | C110: 1760.290885 | D110: 94148.79675 | E110: 94149.81341
B111: 384 | C111: 1758.56305 | D111: 92096.87192 | E111: 92097.87034
B112: 392 | C112: 1756.797086 | D112: 90126.74295 | E112: 90127.72395
B113: 400 | C113: 1754.992877 | D113: 88233.49631 | E113: 88234.46066
B114: 408 | C114: 1753.150307 | D114: 86412.60367 | E114: 86413.5521
B115: 416 | C115: 1751.269254 | D115: 84659.88492 | E115: 84660.81811
B116: 424 | C116: 1749.349593 | D116: 82971.47527 | E116: 82972.39386
B117: 432 | C117: 1747.391198 | D117: 81343.79606 | E117: 81344.70068
B118: 440 | C118: 1745.393938 | D118: 79773.52877 | E118: 79774.41999
B119: 448 | C119: 1743.35768 | D119: 78257.59175 | E119: 78258.47014
B120: 456 | C120: 1741.282286 | D120: 76793.1195 | E120: 76793.98556
B121: 464 | C121: 1739.167617 | D121: =ChEqu*(B122-B120)/(C122-C120) -> 75377.44396 | E121: 75378.29819
B122: 472 | C122: 1737.013529 | D122: 74008.07782 | E122: 74008.92071
B123: 480 | C123: 1734.819875 | D123: 72682.69948 | E123: 72683.53147
B124: 488 | C124: 1732.586506 | D124: 71399.13939 | E124: 71399.96091
B125: 496 | C125: 1730.313266 | D125: 70155.36787 | E125: 70156.17932
B126: 504 | C126: 1728 | D126: 68949.48393 | E126: 68950.28571
B127: 512 | C127: 1725.646546 | D127: 67779.70527 | E127: 67780.49776
B128: 520 | C128: 1723.252738 | D128: 66644.35912 | E128: 66645.14268
B129: 528 | C129: 1720.81841 | D129: 65541.87396 | E129: 65542.64893
B130: 536 | C130: 1718.343388 | D130: 64470.77194 | E130: 64471.53864
B131: 544 | C131: 1715.827497 | D131: 63429.66198 | E131: 63430.42074
B132: 552 | C132: 1713.270557 | D132: 62417.23354 | E132: 62417.98465
B133: 560 | C133: 1710.672382 | D133: 61432.25079 | E133: 61432.99455
B134: 568 | C134: 1708.032787 | D134: 60473.54738 | E134: 60474.28407
B135: 576 | C135: 1705.351577 | D135: 59540.02164 | E135: 59540.75153
B136: 584 | C136: 1702.628556 | D136: 58630.63209 | E136: 58631.35544
B137: 592 | C137: 1699.863524 | D137: 57744.39341 | E137: 57745.11047
B138: 600 | C138: 1697.056275 | D138: 56880.37267 | E138: 56881.08369
B139: 608 | C139: 1694.206599 | D139: 56037.68592 | E139: 56038.39113
B140: 616 | C140: 1691.314282 | D140: 55215.49496 | E140: 55216.19459
B141: 624 | C141: 1688.379104 | D141: 54413.00441 | E141: 54413.69868
B142: 632 | C142: 1685.400843 | D142: 53629.45905 | E142: 53630.14817
B143: 640 | C143: 1682.379268 | D143: 52864.14123 | E143: 52864.82541
B144: 648 | C144: 1679.314146 | D144: 52116.3686 | E144: 52117.04804
B145: 656 | C145: 1676.205238 | D145: 51385.49193 | E145: 51386.16683
B146: 664 | C146: 1673.0523 | D146: 50670.89315 | E146: 50671.56369
B147: 672 | C147: 1669.855084 | D147: 49971.98342 | E147: 49972.64979
B148: 680 | C148: 1666.613332 | D148: 49288.20147 | E148: 49288.86386
B149: 688 | C149: 1663.326787 | D149: 48619.01199 | E149: 48619.67056
B150: 696 | C150: 1659.995181 | D150: 47963.9041 | E150: 47964.55903
B151: 704 | C151: 1656.618242 | D151: 47322.38996 | E151: 47323.04142
B152: 712 | C152: 1653.195693 | D152: 46694.00353 | E152: 46694.65167
B153: 720 | C153: 1649.72725 | D153: =ChEqu*(B154-B152)/(C154-C152) -> 46078.29927 | E153: 46078.94426
B154: 728 | C154: 1646.212623 | D154: 45474.85107 | E154: 45475.49307
B155: 736 | C155: 1642.651515 | D155: 44883.25119 | E155: 44883.89035
B156: 744 | C156: 1639.043624 | D156: 44303.10922 | E156: 44303.74569
B157: 752 | C157: 1635.388639 | D157: 43734.0512 | E157: 43734.68513
B158: 760 | C158: 1631.686244 | D158: 43175.71875 | E158: 43176.35029
B159: 768 | C159: 1627.936117 | D159: 42627.7682 | E159: 42628.39749
B160: 776 | C160: 1624.137925 | D160: 42089.86991 | E160: 42090.49709
B161: 784 | C161: 1620.291332 | D161: 41561.70748 | E161: 41562.33269
B162: 792 | C162: 1616.395991 | D162: 41042.97709 | E162: 41043.60048
B163: 800 | C163: 1612.45155 | D163: 40533.38692 | E163: 40534.00861
B164: 808 | C164: 1608.457646 | D164: 40032.65647 | E164: 40033.2766
B165: 816 | C165: 1604.413912 | D165: 39540.51606 | E165: 39541.13477
B166: 824 | C166: 1600.319968 | D166: 39056.70627 | E166: 39057.32369
B167: 832 | C167: 1596.175429 | D167: 38580.97745 | E167: 38581.59371
B168: 840 | C168: 1591.979899 | D168: 38113.08926 | E168: 38113.70448
B169: 848 | C169: 1587.732975 | D169: 37652.8102 | E169: 37653.42452
B170: 856 | C170: 1583.434242 | D170: 37199.91721 | E170: 37200.53076
B171: 864 | C171: 1579.083278 | D171: 36754.19527 | E171: 36754.80818
B172: 872 | C172: 1574.67965 | D172: 36315.43703 | E172: 36316.04943
B173: 880 | C173: 1570.222914 | D173: 35883.44244 | E173: 35884.05445
B174: 888 | C174: 1565.712617 | D174: 35458.01842 | E174: 35458.63017
B175: 896 | C175: 1561.148295 | D175: 35038.97855 | E175: 35039.59017
B176: 904 | C176: 1556.529473 | D176: 34626.14276 | E176: 34626.75439
B177: 912 | C177: 1551.855663 | D177: 34219.33706 | E177: 34219.94881
B178: 920 | C178: 1547.126368 | D178: 33818.39324 | E178: 33819.00525
B179: 928 | C179: 1542.341078 | D179: 33423.14864 | E179: 33423.76104
B180: 936 | C180: 1537.499268 | D180: 33033.44588 | E180: 33034.0588
B181: 944 | C181: 1532.600405 | D181: 32649.13265 | E181: 32649.74622
B182: 952 | C182: 1527.643938 | D182: 32270.06149 | E182: 32270.67585
B183: 960 | C183: 1522.629305 | D183: 31896.08955 | E183: 31896.70483
B184: 968 | C184: 1517.55593 | D184: 31527.07842 | E184: 31527.69476
B185: 976 | C185: 1512.423221 | D185: 31162.89394 | E185: 31163.51146
B186: 984 | C186: 1507.230573 | D186: 30803.40597 | E186: 30804.02483
B187: 992 | C187: 1501.977363 | D187: 30448.4883 | E187: 30449.10863
B188: 1000 | C188: 1496.662955 | E188: 30098.64035

Sheet Calculs manuels
